bitfinex-derivatives/quotes_SOLF0:USTF0_20220101
["timestamp","ask_amount","ask_price","bid_price","bid_amount"]
[1641071375514,3.98789798,177.85,177.8,1.26839271]
[1641071375713,31.65268798,177.85,177.8,1.26839271]
[1641071376312,27.66479,177.85,177.8,1.26839271]
[1641071376513,27.66479,177.85,177.8,19.28121551]
[1641071377016,31.65267738,177.85,177.8,19.28121551]
[1641071377717,27.66479,177.85,177.8,19.28121551]
[1641071378317,31.65266303,177.85,177.8,19.28121551]
[1641071378916,27.66479,177.85,177.8,19.28121551]
[1641071379619,31.65278485,177.85,177.8,1.26839271]
[1641071380722,3.98815459,177.83,177.8,1.26839271]
[1641071381622,27.66479,177.85,177.79,30.9425]
[1641071381820,31.6526942,177.85,177.79,42.91821238]
[1641071382425,27.66479,177.85,177.8,1.26695372]
[1641071382924,31.5764,177.87,177.8,1.26695372]
[1641071383123,3.99206506,177.84,177.8,19.28631618]
[1641071383423,3.99206506,177.84,177.8,24.19031618]
[1641071383824,3.99188408,177.85,177.81,13.2426661]
[1641071384425,31.5764,177.87,177.81,13.2426661]
[1641071385227,3.9918644,177.85,177.81,13.2426661]
[1641071385828,3.99185985,177.86,177.81,13.2426661]
[1641071386431,31.5764,177.87,177.81,13.2426661]
[1641071387029,3.99180303,177.86,177.81,11.97571238]
[1641071387231,3.99180303,177.86,177.82,11.97571238]
[1641071388031,31.5764,177.87,177.82,11.97571238]
[1641071388532,27.66479,177.89,177.82,11.97571238]
[1641071388732,3.99181743,177.86,177.82,11.97571238]
[1641071389333,2.72343255,177.88,177.82,11.97571238]
[1641071389933,3.99180784,177.86,177.82,11.97571238]
[1641071390536,3.99197816,177.85,177.81,11.97571238]
[1641071391541,39.64038319,177.89,177.81,11.97571238]
[1641071392339,3.99183762,177.86,177.82,11.97571238]
[1641071393140,27.66479,177.89,177.82,11.97571238]
[1641071393340,27.66479,177.89,177.8,19.28631618]
[1641071394140,3.98689142,177.86,177.8,19.28631618]
[1641071394840,27.66479,177.89,177.8,19.28631618]
[1641071395442,3.98696171,177.86,177.8,19.28631618]
[1641071396040,27.66479,177.89,177.8,19.28631618]
[1641071396742,3.98700526,177.86,177.8,19.28631618]
[1641071397341,27.66479,177.89,177.8,19.28631618]
[1641071397943,27.66479,177.86,177.8,19.28631618]
[1641071398142,31.65180431,177.86,177.8,19.28631618]
[1641071398742,27.66479,177.86,177.8,19.28631618]
[1641071399545,31.65180439,177.86,177.8,19.28631618]
[1641071400346,27.66479,177.86,177.8,19.28631618]
[1641071400947,31.65182639,177.86,177.8,19.28631618]
[1641071401646,27.66479,177.86,177.8,19.28631618]
[1641071402347,31.65183896,177.86,177.8,19.28631618]
[1641071402946,27.66479,177.86,177.8,13.2426661]
[1641071403147,3.9870457,177.85,177.8,1.26695372]
[1641071403846,27.66479,177.86,177.8,19.28630522]
[1641071404646,3.99199118,177.85,177.81,11.97571238]
[1641071405245,27.66479,177.86,177.81,11.97571238]
[1641071405848,3.99197853,177.85,177.81,11.97571238]
[1641071406847,27.66479,177.86,177.81,11.97571238]
[1641071407452,3.99197363,177.85,177.81,11.97571238]
[1641071408149,27.66479,177.86,177.81,11.97571238]
[1641071408750,3.99198472,177.85,177.81,11.97571238]
[1641071409561,27.66479,177.86,177.81,11.97571238]
[1641071410351,3.9920124,177.85,177.81,11.97571238]
[1641071411052,27.66479,177.86,177.81,11.97571238]
[1641071411852,3.99200178,177.85,177.81,11.97571238]
[1641071412253,27.66479,177.86,177.81,11.97571238]
[1641071413055,3.99200187,177.85,177.81,11.97571238]
[1641071413655,31.6543446,177.86,177.81,11.97571238]
[1641071414356,27.66479,177.86,177.81,11.97571238]
[1641071415258,31.6543504,177.86,177.81,11.97571238]
[1641071415960,27.66479,177.86,177.81,11.97571238]
[1641071416659,31.65438722,177.86,177.8,19.28630522]
[1641071417261,27.66479,177.86,177.8,19.28630522]
[1641071417461,3.98961128,177.85,177.8,19.28630522]
[1641071418063,27.66479,177.86,177.8,19.28630522]
[1641071419263,27.66479,177.89,177.8,19.28630522]
[1641071419464,27.66479,177.89,177.8,1.26695372]
[1641071419465,3.98965311,177.84,177.8,1.26695372]
[1641071420063,27.66479,177.89,177.8,1.26695372]
[1641071420264,27.66479,177.89,177.8,19.28257852]
[1641071420265,3.98960521,177.85,177.8,19.28257852]
[1641071420764,3.98960521,177.85,177.8,22.28257852]
[1641071421064,3.98960521,177.85,177.8,19.28257852]
[1641071421466,39.63360563,177.89,177.8,19.28257852]
[1641071421666,3.98929427,177.86,177.81,11.97571238]
[1641071421864,3.98929427,177.86,177.81,14.97571238]
[1641071422165,11.96881563,177.9,177.81,11.97571238]
[1641071422364,3.98882629,177.88,177.83,11.97571238]
[1641071423064,3.99162436,177.86,177.82,11.97571238]
[1641071424068,58.42469,177.89,177.82,11.97571238]
[1641071424366,3.99179119,177.85,177.81,11.97571238]
[1641071424766,2.72344146,177.88,177.81,11.97571238]
[1641071425469,63.09869,177.89,177.81,11.97571238]
[1641071425669,3.9918316,177.86,177.82,11.97571238]
[1641071426071,63.09869,177.89,177.82,11.97571238]
[1641071426271,2.72346074,177.88,177.82,11.97571238]
[1641071426771,63.09869,177.89,177.82,11.97571238]
[1641071426970,3.99183307,177.86,177.82,11.97571238]
[1641071427673,58.42469,177.89,177.82,11.97571238]
[1641071427874,2.72345682,177.88,177.82,11.97571238]
[1641071428377,3.99183455,177.86,177.82,11.97571238]
[1641071429475,2.72347179,177.88,177.82,11.97571238]
[1641071429977,3.99181876,177.86,177.82,11.97571238]
[1641071430680,2.7234401,177.88,177.82,11.97571238]
[1641071431383,3.99181875,177.86,177.82,11.97571238]
[1641071432078,2.72342033,177.88,177.82,11.97571238]
[1641071432879,3.99148154,177.87,177.83,11.97571238]
[1641071433580,3.99139222,177.88,177.84,11.97571238]
[1641071434383,27.66479,177.89,177.84,11.97571238]
[1641071435481,27.66479,177.91,177.84,11.97571238]
[1641071435883,3.99132091,177.88,177.84,11.97571238]
[1641071436585,3.9790218,177.9,177.82,11.97571238]
[1641071436784,3.9790218,177.9,177.83,30.1062]
[1641071437585,3.97920965,177.89,177.84,1.26695372]
[1641071438287,3.97902798,177.9,177.83,30.1062]
[1641071439091,27.66479,177.91,177.83,30.1062]
[1641071439291,27.66479,177.91,177.84,1.2645079]
[1641071439892,3.97912261,177.9,177.84,1.2645079]
[1641071440692,27.66479,177.91,177.84,1.2645079]
[1641071440893,3.97922163,177.89,177.84,1.2645079]
[1641071441492,27.66479,177.91,177.83,30.1062]
[1641071441793,3.0,177.89,177.83,30.1062]
[1641071441991,3.0,177.9,177.83,30.1062]
[1641071442193,30.66479,177.91,177.83,30.1062]
[1641071442392,3.0,177.9,177.83,30.1062]
[1641071442894,27.66479,177.87,177.83,30.1062]
[1641071443095,31.64436473,177.87,177.83,30.1062]
[1641071443596,27.66479,177.87,177.79,17.5935321]
[1641071443796,3.99186962,177.85,177.84,1.26837206]
[1641071444497,3.99186962,177.85,177.81,11.97571238]
[1641071444498,27.66479,177.87,177.81,11.97571238]
[1641071445297,3.99188929,177.85,177.81,11.97571238]
[1641071446199,27.66479,177.87,177.81,11.97571238]
[1641071446698,3.99175497,177.86,177.82,11.97571238]
[1641071447499,27.66479,177.87,177.82,11.97571238]
[1641071447701,27.66479,177.87,177.8,12.56594984]
[1641071447702,3.99187237,177.85,177.81,13.24408248]
[1641071448300,27.66479,177.87,177.81,13.24408248]
[1641071448502,3.99188774,177.86,177.82,11.97571238]
[1641071449305,27.66479,177.87,177.82,13.24408248]
[1641071449906,31.65637396,177.87,177.83,11.97571238]
[1641071450707,27.66479,177.87,177.83,11.97571238]
[1641071450907,3.99139239,177.88,177.84,11.97571238]
[1641071451309,28.9435,177.89,177.84,11.97571238]
[1641071452209,3.99151532,177.87,177.83,11.97571238]
[1641071453112,3.99134238,177.88,177.84,11.97571238]
[1641071454012,28.9435,177.89,177.84,11.97571238]
[1641071454512,3.99133881,177.88,177.84,11.97571238]
[1641071455414,28.9435,177.89,177.84,11.97571238]
[1641071455617,3.99142156,177.87,177.83,11.97571238]
[1641071456121,3.99134394,177.88,177.83,11.97571238]
[1641071456718,28.9435,177.89,177.83,11.97571238]
[1641071457619,3.99099266,177.87,177.82,19.28766222]
[1641071458222,28.9435,177.89,177.82,19.28766222]
[1641071458223,28.9435,177.89,177.83,11.97571238]
[1641071459020,3.9909113,177.87,177.83,11.97571238]
[1641071459623,3.99082298,177.88,177.83,11.97571238]
[1641071460521,27.66479,177.91,177.82,7.31194984]
[1641071460522,27.66479,177.91,177.84,11.97571238]
[1641071461421,3.99075289,177.88,177.84,11.97571238]
[1641071462022,27.66479,177.91,177.84,11.97571238]
[1641071462224,3.99047748,177.89,177.85,11.97571238]
[1641071462722,27.66479,177.91,177.85,11.97571238]
[1641071462923,3.99042219,177.9,177.85,11.97571238]
[1641071463523,27.66479,177.91,177.86,11.97571238]
[1641071464222,31.65513863,177.91,177.86,11.97571238]
[1641071464922,27.66479,177.91,177.86,11.97571238]
[1641071465926,31.65499794,177.91,177.87,11.97571238]
[1641071466324,11.97104589,177.95,177.87,11.97571238]
[1641071466522,11.97104589,177.95,177.89,5.61466551]
[1641071466923,31.81526057,177.99,177.89,5.61466551]
[1641071467127,11.97008883,177.98,177.94,27.66479]
[1641071468322,31.81526057,178.02,177.94,27.66479]
[1641071468525,11.96808909,178.01,177.95,1.2683701]
[1641071469025,11.96808909,178.01,177.97,27.66479]
[1641071469222,2.72049093,178.03,177.97,27.66479]
[1641071469423,11.96765718,178.02,177.97,27.66479]
[1641071470324,11.96765718,178.02,177.97,21.28209563]
[1641071470523,11.96765718,178.01,177.97,21.28209563]
[1641071474526,11.96765718,178.04,177.98,1.26935896]
[1641071474726,11.96765718,178.04,177.98,30.38345896]
[1641071475127,11.96765718,178.04,178.02,27.66479]
[1641071475327,58.38019,178.1,178.02,27.66479]
[1641071475529,3.0,178.09,177.98,29.1141]
[1641071476126,8.982,178.09,177.98,29.1141]
[1641071476626,3.0,178.08,177.98,29.1141]
[1641071478730,5.982,178.09,178.01,5.61104253]
[1641071479130,5.982,178.09,178.02,27.66479]
[1641071481934,27.66479,178.1,178.02,27.66479]
[1641071483938,27.66479,178.1,178.02,56.47069]
[1641071485037,30.66479,178.1,178.02,56.47069]
[1641071485239,27.66479,178.1,178.02,56.47069]
[1641071487540,2.71782936,178.09,178.03,1.26947672]
[1641071494246,59.60999,178.1,178.02,56.47069]
[1641071502060,31.9452,178.1,178.02,56.47069]
[1641071504967,3.0,178.13,178.02,56.47069]
[1641071505570,2.71712019,178.09,178.05,27.66479]
[1641071506370,14.68477737,178.12,178.06,1.26954119]
[1641071506773,17.68477737,178.12,178.06,1.26954119]
[1641071507681,2.71712019,178.11,178.06,1.26954119]
[1641071509775,5.71712019,178.11,178.06,1.26954119]
[1641071510379,3.0,178.1,178.06,1.26954119]
[1641071510576,2.71712019,178.1,178.06,1.26954119]
[1641071511675,14.68477737,178.11,178.06,1.26954119]
[1641071512476,2.71712019,178.11,178.06,1.26954119]
[1641071513275,5.71712019,178.11,178.06,1.26954119]
[1641071513475,3.0,178.1,178.06,1.26954119]
[1641071513676,2.71712019,178.11,178.06,1.26954119]
[1641071513677,5.71712019,178.11,178.06,1.26954119]
[1641071513878,2.71712019,178.1,178.06,1.26954119]
[1641071517082,5.71712019,178.1,178.06,1.26954119]
[1641071517882,2.71712019,178.09,178.03,1.26954119]
[1641071519787,11.96765718,178.11,178.03,1.26954119]
[1641071520486,14.68477737,178.11,178.03,1.26954119]
[1641071523490,2.71712019,178.11,178.03,19.28623904]
[1641071523688,3.0,178.1,178.03,19.28623904]
[1641071523890,5.71712019,178.11,178.03,19.28623904]
[1641071524090,17.68477737,178.11,178.03,19.28623904]
[1641071524891,2.71712019,178.1,178.03,19.28623904]
[1641071525091,5.71712019,178.1,178.03,19.28623904]
[1641071525492,5.71712019,178.1,178.03,13.24525357]
[1641071525691,17.68477737,178.1,178.03,1.26954119]
[1641071526196,5.71712019,178.09,178.03,1.26954119]
[1641071526394,2.71712019,178.09,178.03,1.26954119]
[1641071527097,3.98719418,178.06,178.03,1.26954119]
[1641071531902,31.8104,178.09,178.02,68.44640238]
[1641071532302,11.96765718,178.1,178.02,68.44640238]
[1641071532904,14.96765718,178.1,178.02,68.44640238]
[1641071533103,3.98719997,178.06,178.03,1.26948733]
[1641071533904,14.68543383,178.1,178.02,56.47069]
[1641071534604,3.98725962,178.06,178.03,1.26948136]
[1641071535308,14.68543383,178.1,178.02,56.47069]
[1641071535906,3.98726424,178.06,178.03,1.2694809]
[1641071536710,14.68543383,178.1,178.02,56.47069]
[1641071537309,3.98725289,178.06,178.03,1.26948204]
[1641071537808,3.98725289,178.06,178.05,27.66479]
[1641071538011,14.68543383,178.1,178.05,27.66479]
[1641071538609,3.98722035,178.06,178.05,27.66479]
[1641071539313,14.67937695,178.1,178.05,27.66479]
[1641071540115,3.98723016,178.06,178.05,27.66479]
[1641071540511,14.67937151,178.1,178.05,27.66479]
[1641071541512,12.90557652,178.11,178.05,27.66479]
[1641071541713,3.98723388,178.06,178.05,27.66479]
[1641071542114,14.67939506,178.1,178.05,27.66479]
[1641071542813,3.98722594,178.06,178.05,27.66479]
[1641071543415,9.90557652,178.11,178.05,27.66479]
[1641071543615,11.96165199,178.1,178.05,27.66479]
[1641071544118,12.62330826,178.11,178.05,27.66479]
[1641071544316,3.98720408,178.06,178.05,27.66479]
[1641071544918,11.96164578,178.1,178.05,27.66479]
[1641071545818,12.62330826,178.11,178.05,27.66479]
[1641071546019,3.98721989,178.06,178.05,27.66479]
[1641071546519,11.96170293,178.1,178.05,27.66479]
[1641071547222,3.9872278,178.06,178.05,27.66479]
[1641071548022,11.96170293,178.1,178.05,27.66479]
[1641071548623,3.98722716,178.06,178.05,27.66479]
[1641071549325,11.96170293,178.1,178.05,27.66479]
[1641071549928,3.98720463,178.06,178.05,27.66479]
[1641071550727,11.96170293,178.1,178.05,27.66479]
[1641071551328,11.96170293,178.1,178.07,5.60899683]
[1641071551527,11.96170293,178.13,178.07,5.60899683]
[1641071551929,11.96170293,178.13,178.08,27.66479]
[1641071552327,11.96170293,178.13,178.1,5.60821042]
[1641071552530,2.71773174,178.14,178.1,5.60821042]
[1641071553228,27.66479,178.18,178.1,5.60821042]
[1641071553430,2.71564615,178.17,178.1,5.60821042]
[1641071554132,11.95664367,178.17,178.11,1.26989756]
[1641071554834,2.71581141,178.17,178.1,35.19921042]
[1641071555036,2.71581141,178.17,178.1,29.591]
[1641071556340,11.95731267,178.16,178.11,1.26987944]
[1641071557542,14.67261811,178.17,178.1,29.591]
[1641071558040,14.67261811,178.17,178.14,27.66479]
[1641071558439,31.81526057,178.21,178.14,27.66479]
[1641071558640,11.95545711,178.19,178.14,27.66479]
[1641071558841,11.95545711,178.19,178.15,28.9517]
[1641071559040,11.95545711,178.19,178.14,27.66479]
[1641071559641,34.53047165,178.23,178.14,27.66479]
[1641071559841,11.9538143,178.22,178.15,1.26994129]
[1641071560044,11.9538143,178.22,178.18,27.66479]
[1641071561045,11.9538143,178.22,178.18,21.28956656]
[1641071561246,11.9538143,178.22,178.18,26.05056656]
[1641071561642,11.9538143,178.23,178.18,26.05056656]
[1641071562445,11.9538143,178.24,178.19,1.27005391]
[1641071563345,11.9538143,178.25,178.19,1.27005391]
[1641071563947,11.9538143,178.25,178.22,27.66479]
[1641071564748,11.9538143,178.25,178.19,33.04365391]
[1641071565248,11.9538143,178.24,178.2,1.27005391]
[1641071565950,11.9538143,178.24,178.22,27.66479]
[1641071566951,11.9538143,178.25,178.22,27.66479]
[1641071571959,11.9538143,178.25,178.19,31.7736]
[1641071572258,11.9538143,178.25,178.21,27.66479]
[1641071572660,3.0,178.24,178.18,21.28956656]
[1641071572860,11.9538143,178.26,178.22,1.27050391]
[1641071573261,3.0,178.25,178.22,1.27050391]
[1641071574261,14.9538143,178.26,178.22,1.27050391]
[1641071574460,17.66902538,178.26,178.19,1.27050391]
[1641071574660,11.9538143,178.23,178.19,1.27050391]
[1641071576862,11.9538143,178.23,178.17,1.27050391]
[1641071577462,14.66902538,178.24,178.17,1.27050391]
[1641071578164,14.66902538,178.24,178.19,27.66479]
[1641071580366,11.9538143,178.24,178.2,1.27045013]
[1641071581069,31.7288,178.27,178.19,27.66479]
[1641071582569,2.69593283,178.26,178.19,27.66479]
[1641071583573,31.7288,178.27,178.19,27.66479]
[1641071585073,14.66666923,178.26,178.2,1.27046799]
[1641071585875,2.71285493,178.26,178.2,1.27046799]
[1641071587779,14.66666923,178.26,178.2,1.27046799]
[1641071591480,2.71285493,178.26,178.2,1.27046799]
[1641071594283,2.71285493,178.26,178.23,27.66479]
[1641071594686,11.9538143,178.27,178.23,27.66479]
[1641071596590,11.9538143,178.28,178.24,1.27050489]
[1641071598091,14.66666923,178.31,178.24,1.27050489]
[1641071599390,11.9538143,178.3,178.24,1.27050489]
[1641071600092,14.66666923,178.31,178.24,1.27050489]
[1641071600294,3.0,178.3,178.24,1.27050489]
[1641071600692,14.66666923,178.31,178.24,1.27050489]
[1641071601095,14.66666923,178.29,178.24,1.27050489]
[1641071601795,11.9538143,178.29,178.24,1.27050489]
[1641071604297,11.9538143,178.29,178.23,86.59158]
[1641071604498,14.66666923,178.31,178.23,86.59158]
[1641071606599,5.71285493,178.31,178.23,86.59158]
[1641071607402,2.71285493,178.3,178.23,86.59158]
[1641071611410,6.67744036,178.3,178.23,86.59158]
[1641071611612,3.96458543,178.3,178.24,1.26487886]
[1641071612213,3.96458543,178.29,178.25,11.97571238]
[1641071612414,3.96458543,178.29,178.27,27.66479]
[1641071612812,3.96458543,178.29,178.27,33.25079]
[1641071613614,3.96458543,178.3,178.28,1.26487886]
[1641071614613,3.96458543,178.31,178.28,1.26487886]
[1641071615619,3.96458543,178.32,178.28,1.26487886]
[1641071617215,3.96458543,178.32,178.28,19.28338911]
[1641071618016,3.96458543,178.32,178.28,1.26487886]
[1641071619421,3.96458543,178.31,178.28,1.26487886]
[1641071620721,3.96458543,178.31,178.28,4.26487886]
[1641071620926,3.98144735,178.32,178.28,1.26487886]
[1641071621322,3.98144735,178.32,178.31,5.60114263]
[1641071621523,3.98144735,178.32,178.31,11.36014263]
[1641071622024,11.9538143,178.36,178.31,11.36014263]
[1641071622225,3.0,178.42,178.31,11.36014263]
[1641071622226,11.9538143,178.41,178.31,11.36014263]
[1641071622423,11.9538143,178.41,178.32,30.1143]
[1641071622622,11.9538143,178.41,178.33,27.66479]
[1641071623123,2.70937025,178.41,178.33,46.91325134]
[1641071623924,39.6186043,178.42,178.34,1.26487886]
[1641071624725,27.66479,178.42,178.33,27.66479]
[1641071625927,30.66479,178.42,178.33,27.66479]
[1641071626126,3.0,178.39,178.33,27.66479]
[1641071626326,3.0,178.41,178.33,27.66479]
[1641071626526,3.0,178.4,178.33,27.66479]
[1641071626727,3.0,178.41,178.33,27.66479]
[1641071626927,27.66479,178.42,178.33,27.66479]
[1641071627328,27.66479,178.42,178.34,5.60051525]
[1641071628829,31.7622,178.43,178.34,5.60051525]
[1641071629831,3.0,178.4,178.34,5.60051525]
[1641071630031,9.025,178.4,178.33,27.66479]
[1641071630233,3.0,178.39,178.33,27.66479]
[1641071630532,3.0,178.39,178.3,27.66479]
[1641071630733,32.4872,178.39,178.3,27.66479]
[1641071631335,29.4872,178.39,178.3,27.66479]
[1641071631932,32.4872,178.39,178.3,27.66479]
[1641071632138,29.4872,178.39,178.3,27.66479]
[1641071632433,32.4872,178.39,178.3,27.66479]
[1641071632633,29.4872,178.39,178.3,27.66479]
[1641071633935,14.66361878,178.38,178.31,1.27102029]
[1641071634740,2.70980448,178.38,178.31,19.25466269]
[1641071635337,2.70980448,178.38,178.31,1.27102029]
[1641071636140,2.70980448,178.38,178.31,19.25469757]
[1641071637941,2.70980448,178.38,178.32,11.94046977]
[1641071640447,2.70980448,178.38,178.32,16.75146977]
[1641071641553,2.70980448,178.38,178.33,13.21149006]
[1641071642752,2.70980448,178.38,178.33,40.87628006]
[1641071642953,2.70980448,178.38,178.33,46.91948757]
[1641071643553,11.9538143,178.41,178.33,40.87628006]
[1641071643753,11.9538143,178.42,178.34,1.27102029]
[1641071644455,14.66274967,178.42,178.34,1.27102029]
[1641071645153,14.66274967,178.42,178.34,24.85494663]
[1641071646255,14.66274967,178.45,178.36,11.94046977]
[1641071646455,14.66274967,178.45,178.37,30.7569]
[1641071646854,14.66274967,178.45,178.4,27.66479]
[1641071648056,2.70893537,178.46,178.41,1.27102029]
[1641071648856,11.9538143,178.49,178.44,27.66479]
[1641071649959,2.70893537,178.51,178.44,27.66479]
[1641071649960,11.9538143,178.48,178.44,27.66479]
[1641071651261,11.9538143,178.49,178.44,27.66479]
[1641071652863,11.9538143,178.49,178.45,1.27125667]
[1641071653263,11.9538143,178.49,178.45,8.02425667]
[1641071653462,11.9538143,178.49,178.45,6.753]
[1641071654263,11.9538143,178.48,178.45,6.753]
[1641071654865,11.9538143,178.49,178.45,6.753]
[1641071655365,12.58051296,178.51,178.45,6.753]
[1641071655366,11.9538143,178.48,178.45,6.753]
[1641071656166,11.9538143,178.49,178.45,6.753]
[1641071657468,11.9538143,178.48,178.45,6.753]
[1641071658172,11.9538143,178.49,178.45,6.753]
[1641071658471,11.9538143,178.49,178.44,27.66479]
[1641071660178,11.9538143,178.49,178.45,1.2712617]
[1641071660976,11.9538143,178.49,178.44,27.66479]
[1641071661674,11.9538143,178.48,178.44,27.66479]
[1641071663276,3.0,178.45,178.44,27.66479]
[1641071663575,3.0,178.45,178.39,11.94046977]
[1641071663874,11.9538143,178.48,178.39,11.94046977]
[1641071663875,3.0,178.44,178.39,11.94046977]
[1641071664075,3.0,178.44,178.36,11.94046977]
[1641071664476,17.66274967,178.45,178.36,11.94046977]
[1641071664677,3.0,178.44,178.36,11.94046977]
[1641071664878,30.37372537,178.43,178.35,11.94046977]
[1641071666077,2.70893537,178.42,178.35,11.94046977]
[1641071667178,5.70893537,178.42,178.35,11.94046977]
[1641071667379,2.70893537,178.42,178.35,11.94046977]
[1641071668285,9.18593537,178.42,178.35,11.94046977]
[1641071668482,21.13974967,178.42,178.34,11.94046977]
[1641071669485,2.70893537,178.41,178.34,11.94046977]
[1641071670687,14.66274967,178.42,178.34,11.94046977]
[1641071671387,2.70893537,178.42,178.34,11.94046977]
[1641071671987,14.66274967,178.42,178.34,11.94046977]
[1641071672687,2.70893537,178.42,178.35,11.94046977]
[1641071675595,2.70893537,178.42,178.36,11.94046977]
[1641071676393,2.70893537,178.42,178.35,11.94046977]
[1641071679497,5.70893537,178.42,178.35,11.94046977]
[1641071679696,3.0,178.36,178.34,1.27114053]
[1641071679897,3.0,178.35,178.34,1.27114053]
[1641071680099,3.0,178.35,178.31,31.81526057]
[1641071680301,3.0,178.35,178.28,5.60239783]
[1641071680698,3.0,178.34,178.28,5.60239783]
[1641071680902,2.70893537,178.41,178.26,61.04806057]
[1641071681098,2.70893537,178.41,178.27,22.40645306]
[1641071681301,9.88185674,178.42,178.39,5.5989474]
[1641071681501,31.81526057,178.42,178.39,4.378]
[1641071681703,39.44289085,178.47,178.41,5.59800711]
[1641071682101,35.44289085,178.47,178.41,5.59800711]
[1641071682300,35.44289085,178.47,178.39,4.378]
[1641071682301,14.22289085,178.47,178.46,5.59612748]
[1641071682598,31.83036925,178.53,178.46,5.59612748]
[1641071683203,31.83036925,178.53,178.48,27.66479]
[1641071683599,31.83036925,178.53,178.48,30.66479]
[1641071683802,31.83036925,178.53,178.49,3.0]
[1641071684099,27.66479,178.57,178.49,3.0]
[1641071684300,25.53036925,178.59,178.53,3.0]
[1641071684499,25.53036925,178.59,178.52,5.59487509]
[1641071684702,25.53036925,178.59,178.54,3.0]
[1641071684901,25.53036925,178.59,178.55,3.0]
[1641071685103,60.84926301,178.67,178.58,27.66479]
[1641071685306,12.58029847,178.66,178.58,27.66479]
[1641071686803,2.70757301,178.66,178.58,27.66479]
[1641071687003,2.70757301,178.65,178.59,7.31434221]
[1641071688401,27.66479,178.67,178.58,27.66479]
[1641071690907,30.66479,178.67,178.58,27.66479]
[1641071691107,27.66479,178.67,178.58,27.66479]
[1641071692407,27.66479,178.67,178.59,5.59252838]
[1641071694006,27.66479,178.67,178.63,5.59127761]
[1641071694406,27.66479,178.67,178.6,5.592372]
[1641071695108,27.66479,178.67,178.61,1.69694034]
[1641071695810,30.66479,178.67,178.61,1.69694034]
[1641071696210,3.0,178.66,178.61,1.69694034]
[1641071696410,30.66479,178.67,178.61,1.69694034]
[1641071696612,3.0,178.65,178.61,1.69694034]
[1641071697411,31.63987481,178.67,178.61,1.69694034]
[1641071697613,27.66479,178.67,178.61,1.69694034]
[1641071698612,31.63991749,178.67,178.61,1.69694034]
[1641071699614,34.63991749,178.67,178.61,1.69694034]
[1641071700216,31.63991749,178.67,178.61,1.69694034]
[1641071700616,3.0,178.65,178.61,1.69694034]
[1641071700816,31.63991749,178.67,178.61,1.69694034]
[1641071701615,3.0,178.66,178.61,1.69694034]
[1641071702016,34.63991749,178.67,178.61,1.69694034]
[1641071702215,3.0,178.66,178.61,1.69694034]
[1641071703220,3.0,178.65,178.61,1.69694034]
[1641071703920,3.0,178.64,178.61,1.69694034]
[1641071704822,3.0,178.62,178.61,4.034e-05]
[1641071705020,3.0,178.62,178.6,4.034e-05]
[1641071705221,30.66479,178.62,178.6,4.034e-05]
[1641071705422,3.0,178.61,178.6,4.034e-05]
[1641071706022,3.0,178.61,178.56,7.17482868]
[1641071706223,27.66479,178.62,178.56,7.17482868]
[1641071706422,30.66479,178.62,178.56,7.17482868]
[1641071706824,27.66479,178.62,178.56,7.17482868]
[1641071707225,3.0,178.58,178.56,7.17482868]
[1641071707824,3.0,178.57,178.56,7.17482868]
[1641071708125,3.0,178.58,178.53,38.97527809]
[1641071708524,3.0,178.59,178.53,38.97527809]
[1641071709026,3.0,178.61,178.53,38.97527809]
[1641071709225,3.0,178.6,178.53,38.97527809]
[1641071710127,3.0,178.6,178.53,31.80044941]
[1641071710830,58.32958,178.62,178.52,27.66479]
[1641071711032,55.32958,178.62,178.52,27.66479]
[1641071711231,58.32958,178.62,178.52,27.66479]
[1641071711430,3.0,178.61,178.52,27.66479]
[1641071711631,58.32958,178.62,178.52,27.66479]
[1641071711832,3.0,178.61,178.52,27.66479]
[1641071712131,58.32958,178.62,178.52,27.66479]
[1641071712333,55.32958,178.62,178.52,27.66479]
[1641071712540,3.0,178.61,178.52,27.66479]
[1641071712732,55.32958,178.62,178.52,27.66479]
[1641071712733,58.32958,178.62,178.52,27.66479]
[1641071713031,3.0,178.6,178.52,27.66479]
[1641071713233,3.0,178.59,178.52,27.66479]
[1641071713632,3.0,178.6,178.52,27.66479]
[1641071714031,3.0,178.59,178.52,27.66479]
[1641071715631,55.32958,178.62,178.52,27.66479]
[1641071715632,3.0,178.56,178.52,27.66479]
[1641071718235,3.0,178.55,178.53,18.98755756]
[1641071718835,3.0,178.56,178.53,18.98755756]
[1641071719035,3.0,178.54,178.53,18.98755756]
[1641071719436,3.0,178.55,178.53,18.98755756]